fUST/lending_fUST_20250921
["ID","MTS","AMOUNT","RATE_DAILY","PERIOD"]
[386641345,1758448246817,-480.0,0.00019452,2]
[386641348,1758448246826,-480.0,0.00019452,2]
[386641350,1758448246836,-480.0,0.00019452,2]
[386641352,1758448246846,-485.0855214,0.00019452,2]
[386641355,1758448246856,-480.0,0.00019452,2]
[386641358,1758448246866,-480.0,0.00019452,2]
[386641361,1758448246875,-485.74503395,0.00019452,2]
[386641364,1758448246885,-480.0,0.00019452,2]
[386641366,1758448246894,-480.0,0.00019452,2]
[386641369,1758448246903,-480.0,0.00019452,2]
[386641372,1758448246913,-500.0,0.00019452,2]
[386641374,1758448246922,-319.46823745,0.00019452,2]
[386641376,1758448246931,-480.0,0.00019452,2]
[386641378,1758448246942,-480.0,0.00019452,2]
[386641380,1758448246951,-279.10275895,0.00019452,2]
[386641382,1758448246961,-480.0,0.00019452,2]
[386641384,1758448246971,-480.0,0.00019452,2]
[386641386,1758448246981,-480.0,0.00019452,2]
[386641388,1758448246991,-480.0,0.00019452,2]
[386641391,1758448247001,-480.0,0.00019452,2]
[386641392,1758448247011,-1520.13,0.00019452,2]
[386641394,1758448247019,-480.0,0.00019452,2]
[386641397,1758448247030,-480.0,0.00019452,2]
[386641399,1758448247039,-482.02238895,0.00019452,2]
[386641401,1758448247048,-480.0,0.00019452,2]
[386641403,1758448247057,-484.22217264,0.00019452,2]
[386641405,1758448247067,-450.98539802,0.00019452,2]
[386641407,1758448247076,-467.86011658,0.00019452,2]
[386641409,1758448247085,-151.0,0.00019452,2]
[386641411,1758448247095,-480.0,0.00019452,2]
[386641413,1758448247105,-480.0,0.00019452,2]
[386641415,1758448247114,-480.0,0.00019452,2]
[386641417,1758448247123,-480.0,0.00019452,2]
[386641419,1758448247133,-480.0,0.00019452,2]
[386641421,1758448247143,-480.0,0.00019452,2]
[386641423,1758448247152,-159.171804,0.00019452,2]
[386641425,1758448247162,-159.171804,0.00019452,2]
[386641427,1758448247171,-480.0,0.00019452,2]
[386641429,1758448247180,-842.13,0.00019452,2]
[386641431,1758448247190,-159.171804,0.00019452,2]
[386641433,1758448247199,-480.0,0.00019452,2]
[386641435,1758448247209,-480.0,0.00019452,2]
[386641437,1758448247218,-480.0,0.00019452,2]
[386641439,1758448247227,-3352.68,0.00019452,2]
[386641441,1758448247236,-159.171804,0.00019452,2]
[386641443,1758448247247,-500.0,0.00019452,2]
[386641445,1758448247257,-501.49623136,0.00019531,2]
[386641447,1758448247266,-480.0,0.00019555,2]
[386641449,1758448247275,-7478.01,0.00019555,2]
[386641451,1758448247284,-480.0,0.00019555,2]
[386641453,1758448247294,-624.8,0.00019555,2]
[386641455,1758448247303,-480.0,0.00019555,2]
[386641457,1758448247312,-759.8,0.00019555,2]
[386641459,1758448247321,-480.0,0.00019555,2]
[386641461,1758448247330,-168.0,0.00019625,2]
[386641463,1758448247339,-500.0,0.00019626,2]
[386641465,1758448247349,-190.0,0.00019699,3]
[386641467,1758448247358,-1000.0,0.00019721,2]
[386641469,1758448247367,-1000.0,0.00019721,2]
[386641471,1758448247376,-872.37900284,0.00019721,2]
[386641473,1758448247386,-1000.0,0.00019721,2]
[386641475,1758448247395,-515.20291988,0.00019721,2]
[386641477,1758448247405,-1000.0,0.00019721,2]
[386641479,1758448247415,-1000.0,0.00019721,2]
[386641481,1758448247424,-1000.0,0.00019721,2]
[386641483,1758448247433,-753.89,0.00019725,2]
[386641484,1758448247442,-753.89,0.00019725,2]
[386641486,1758448247451,-480.0,0.00019726,2]
[386641488,1758448247461,-480.0,0.00019726,2]
[386641490,1758448247472,-480.0,0.00019726,2]
[386641493,1758448247482,-480.0,0.00019726,2]
[386641495,1758448247491,-480.0,0.00019726,2]
[386641497,1758448247500,-480.0,0.00019726,2]
[386641499,1758448247510,-480.0,0.00019726,2]
[386641501,1758448247519,-480.0,0.00019726,2]
[386641503,1758448247529,-480.0,0.00019726,2]
[386641505,1758448247538,-480.0,0.00019726,2]
[386641507,1758448247547,-487.56525955,0.00019726,2]
[386641509,1758448247557,-487.62492314,0.00019726,2]
[386641511,1758448247566,-510.48866658,0.00019726,2]
[386641513,1758448247575,-493.28,0.00019726,2]
[386641515,1758448247585,-480.0,0.00019726,2]
[386641517,1758448247595,-480.0,0.00019726,2]
[386641519,1758448247605,-494.79338197,0.00019726,2]
[386641521,1758448247614,-480.0,0.00019726,2]
[386641523,1758448247623,-480.0,0.00019726,2]
[386641525,1758448247633,-480.0,0.00019726,2]
[386641527,1758448247642,-480.0,0.00019726,2]
[386641529,1758448247651,-487.9722024,0.00019726,2]
[386641531,1758448247660,-493.00849193,0.00019726,2]
[386641532,1758448247669,-480.0,0.00019726,2]
[386641535,1758448247679,-480.0,0.00019726,2]
[386641536,1758448247690,-480.0,0.00019726,2]
[386641539,1758448247701,-480.0,0.00019726,2]
[386641541,1758448247711,-480.0,0.00019726,2]
[386641543,1758448247721,-480.0,0.00019726,2]
[386641554,1758448247814,-477.60093832,0.00019726,2]
[386641556,1758448247824,-232.48256018,0.00019726,2]
[386641558,1758448247834,-480.0,0.00019726,2]
[386641560,1758448247843,-252.51594518,0.00019726,2]
[386641562,1758448247853,-625.38679982,0.00019726,2]
[386641564,1758448247863,-488.29583025,0.00019726,2]
[386641566,1758448247872,-480.0,0.00019726,2]
[386641568,1758448247882,-480.0,0.00019726,2]
[386641570,1758448247891,-403.28869066,0.00019726,2]
[386641572,1758448247901,-480.0,0.00019726,2]
[386641574,1758448247910,-480.0,0.00019726,2]
[386641576,1758448247919,-283.24668668,0.00019726,2]
[386641578,1758448247929,-480.0,0.00019726,2]
[386641580,1758448247938,-480.0,0.00019726,2]
[386641582,1758448247947,-480.0,0.00019726,2]
[386641584,1758448247957,-293.4633415,0.00019726,2]
[386641586,1758448247966,-480.0,0.00019726,2]
[386641588,1758448247977,-480.0,0.00019726,2]
[386641590,1758448247986,-480.0,0.00019726,2]
[386641592,1758448247996,-519.25470578,0.00019726,2]
[386641594,1758448248005,-480.0,0.00019726,2]
[386641596,1758448248015,-480.0,0.00019726,2]
[386641597,1758448248024,-480.0,0.00019726,2]
[386641599,1758448248033,-480.0,0.00019726,2]
[386641601,1758448248042,-480.0,0.00019726,2]
[386641603,1758448248053,-492.57521216,0.00019726,2]
[386641605,1758448248063,-480.0,0.00019726,2]
[386641607,1758448248073,-480.0,0.00019726,2]
[386641609,1758448248082,-480.0,0.00019726,2]
[386641611,1758448248092,-480.0,0.00019726,2]
[386641613,1758448248101,-491.78097226,0.00019726,2]
[386641615,1758448248110,-480.0,0.00019726,2]
[386641617,1758448248120,-480.0,0.00019726,2]
[386641620,1758448248131,-480.0,0.00019726,2]
[386641622,1758448248140,-487.03356796,0.00019726,2]
[386641624,1758448248151,-487.62871854,0.00019726,2]
[386641626,1758448248162,-480.0,0.00019726,2]
[386641628,1758448248173,-961.48,0.00019726,2]
[386641630,1758448248183,-480.0,0.00019726,2]
[386641632,1758448248193,-480.0,0.00019726,2]
[386641634,1758448248203,-440.79543846,0.00019726,2]
[386641636,1758448248213,-480.0,0.00019726,2]
[386641638,1758448248227,-510.85054252,0.00019726,2]
[386641640,1758448248237,-480.0,0.00019726,2]
[386641642,1758448248247,-480.0,0.00019726,2]
[386641644,1758448248256,-488.17594511,0.00019726,2]
[386641645,1758448248266,-480.0,0.00019726,2]
[386641647,1758448248275,-480.0,0.00019726,2]
[386641649,1758448248284,-480.0,0.00019726,2]
[386641651,1758448248294,-364.01,0.00019726,2]
[386641652,1758448248303,-480.0,0.00019726,2]
[386641654,1758448248313,-480.0,0.00019726,2]
[386641656,1758448248322,-480.0,0.00019726,2]
[386641659,1758448248331,-480.0,0.00019726,2]
[386641660,1758448248341,-480.0,0.00019726,2]
[386641662,1758448248350,-480.0,0.00019726,2]
[386641664,1758448248359,-480.0,0.00019726,2]
[386641666,1758448248369,-480.0,0.00019726,2]
[386641668,1758448248378,-480.0,0.00019726,2]
[386641670,1758448248388,-480.0,0.00019726,2]
[386641673,1758448248398,-417.17538703,0.00019726,2]
[386641675,1758448248408,-480.0,0.00019726,2]
[386641677,1758448248417,-480.0,0.00019726,2]
[386641679,1758448248427,-486.54206531,0.00019726,2]
[386641681,1758448248436,-480.0,0.00019726,2]
[386641683,1758448248445,-635.75,0.00019726,2]
[386641684,1758448248455,-480.0,0.00019726,2]
[386641687,1758448248465,-534.34797157,0.00019726,2]
[386641689,1758448248476,-480.0,0.00019726,2]
[386641691,1758448248485,-480.0,0.00019726,2]
[386641693,1758448248494,-480.0,0.00019726,2]
[386641695,1758448248503,-480.0,0.00019726,2]
[386641697,1758448248512,-484.21005901,0.00019726,2]
[386641699,1758448248522,-888.43,0.00019726,2]
[386641700,1758448248532,-627.24,0.00019726,2]
[386641702,1758448248541,-480.0,0.00019726,2]
[386641705,1758448248551,-1387.63,0.00019726,2]
[386641707,1758448248561,-480.0,0.00019726,2]
[386641709,1758448248571,-480.0,0.00019726,2]
[386641711,1758448248581,-618.36,0.00019726,2]
[386641713,1758448248590,-480.0,0.00019726,2]
[386641714,1758448248600,-480.0,0.00019726,2]
[386641716,1758448248609,-480.0,0.00019726,2]
[386641718,1758448248619,-480.0,0.00019726,2]
[386641720,1758448248629,-191.09,0.00019726,2]
[386641722,1758448248639,-480.0,0.00019726,2]
[386641723,1758448248649,-480.0,0.00019726,2]
[386641725,1758448248658,-754.05,0.00019726,2]
[386641727,1758448248668,-480.0,0.00019726,2]
[386641729,1758448248677,-480.0,0.00019726,2]
[386641731,1758448248687,-480.0,0.00019726,2]
[386641733,1758448248701,-480.0,0.00019726,2]
[386641735,1758448248710,-480.0,0.00019726,2]
[386641737,1758448248719,-482.28024619,0.00019726,2]
[386641739,1758448248729,-486.71215262,0.00019726,2]
[386641740,1758448248739,-480.0,0.00019726,2]
[386641742,1758448248748,-537.85,0.00019726,2]
[386641744,1758448248757,-492.60117352,0.00019726,2]
[386641746,1758448248769,-480.0,0.00019726,2]
[386641748,1758448248778,-480.0,0.00019726,2]
[386641750,1758448248788,-480.0,0.00019726,2]
[386641752,1758448248798,-487.81578648,0.00019726,2]
[386641754,1758448248807,-480.0,0.00019726,2]
[386641756,1758448248817,-480.0,0.00019726,2]
[386641758,1758448248826,-483.63497009,0.00019726,2]
[386641760,1758448248839,-480.0,0.00019726,2]
[386641762,1758448248848,-483.07820697,0.00019726,2]
[386641764,1758448248858,-480.0,0.00019726,2]
[386641766,1758448248867,-563.09115431,0.00019726,2]
[386641768,1758448248877,-480.0,0.00019726,2]
[386641770,1758448248888,-480.0,0.00019726,2]
[386641772,1758448248898,-494.9616454,0.00019726,2]
[386641774,1758448248907,-480.0,0.00019726,2]
[386641776,1758448248917,-480.0,0.00019726,2]
[386641778,1758448248926,-480.0,0.00019726,2]
[386641780,1758448248936,-480.0,0.00019726,2]
[386641782,1758448248946,-331.46927834,0.00019726,2]
[386641784,1758448248956,-480.0,0.00019726,2]
[386641786,1758448248966,-480.0,0.00019726,2]
[386641788,1758448248977,-492.86476571,0.00019726,2]
[386641790,1758448248987,-460.558345,0.00019726,2]
[386641792,1758448248997,-480.0,0.00019726,2]
[386641794,1758448249006,-480.0,0.00019726,2]
[386641796,1758448249017,-766.74,0.00019726,2]
[386641798,1758448249028,-480.0,0.00019726,2]
[386641800,1758448249038,-480.0,0.00019726,2]
[386641802,1758448249047,-480.0,0.00019726,2]
[386641804,1758448249057,-480.0,0.00019726,2]
[386641806,1758448249066,-480.0,0.00019726,2]
[386641808,1758448249076,-480.0,0.00019726,2]
[386641810,1758448249085,-480.0,0.00019726,2]
[386641812,1758448249095,-1572.68,0.00019726,2]
[386641813,1758448249105,-480.0,0.00019726,2]
[386641815,1758448249114,-272.42682186,0.00019726,2]
[386641817,1758448249123,-480.0,0.00019726,2]
[386641819,1758448249133,-480.0,0.00019726,2]
[386641821,1758448249144,-480.0,0.00019726,2]
[386641824,1758448249155,-548.17,0.00019726,2]
[386641825,1758448249165,-458.48111788,0.00019726,2]
[386641827,1758448249176,-480.0,0.00019726,2]
[386641829,1758448249186,-687.33,0.00019726,2]
[386641831,1758448249196,-487.94348143,0.00019726,2]
[386641833,1758448249205,-480.0,0.00019726,2]
[386641835,1758448249215,-492.17586035,0.00019726,2]
[386641837,1758448249227,-492.84987269,0.00019726,2]
[386641839,1758448249236,-151.87101503,0.00019726,2]
[386641841,1758448249245,-496.44690182,0.00019726,2]
[386641843,1758448249255,-480.0,0.00019726,2]
[386641846,1758448249264,-316.46398706,0.00019726,2]
[386641847,1758448249275,-480.0,0.00019726,2]
[386641850,1758448249286,-480.0,0.00019726,2]
[386641852,1758448249295,-480.0,0.00019726,2]
[386641854,1758448249304,-480.0,0.00019726,2]
[386641856,1758448249314,-480.0,0.00019726,2]
[386641857,1758448249323,-480.0,0.00019726,2]
[386641859,1758448249333,-1520.13,0.00019726,2]
[386641862,1758448249343,-480.0,0.00019726,2]
[386641864,1758448249352,-320.51291721,0.00019726,2]
[386641866,1758448249362,-480.0,0.00019726,2]
[386641867,1758448249372,-480.0,0.00019726,2]
[386641870,1758448249382,-480.0,0.00019726,2]
[386641872,1758448249391,-480.0,0.00019726,2]
[386641874,1758448249401,-480.0,0.00019726,2]
[386641876,1758448249410,-480.0,0.00019726,2]
[386641878,1758448249420,-567.19672732,0.00019726,2]
[386641880,1758448249429,-842.13,0.00019726,2]
[386641882,1758448249439,-480.0,0.00019726,2]
[386641884,1758448249448,-3352.68,0.00019726,2]
[386641886,1758448249458,-500.0,0.00019726,2]
[386641888,1758448249469,-159.33,0.00019729,2]
[386641890,1758448249479,-179.78425889,0.00019748,2]
[386641892,1758448249489,-407.013,0.00019748,2]
[386641894,1758448249498,-168.0,0.00019761,2]
[386641896,1758448249508,-509.80161875,0.00019829,2]
[386641898,1758448249518,-7478.01,0.00019829,2]
[386641900,1758448249528,-480.0,0.00019829,2]
[386641902,1758448249538,-624.8,0.00019829,2]
[386641904,1758448249548,-480.0,0.00019829,2]
[386641906,1758448249557,-759.8,0.00019829,2]
[386641908,1758448249567,-480.0,0.00019829,2]
[386641910,1758448249577,-168.0,0.00019835,2]
[386641911,1758448249587,-457.16,0.000199,2]
[386641913,1758448249597,-12302.82178238,0.000199,2]
[386641915,1758448249607,-753.89,0.00019964,2]
[386641917,1758448249617,-976.582,0.00019965,2]
[386641919,1758448249627,-201.62966623,0.00019999,2]
[386641921,1758448249637,-753.89,0.00019999,2]
[386641923,1758448249646,-480.0,0.0002,2]
[386641925,1758448249656,-480.0,0.0002,2]
[386641927,1758448249666,-255.2389799,0.0002,2]
[386641930,1758448249677,-480.0,0.0002,2]
[386641932,1758448249693,-480.0,0.0002,2]
[386641933,1758448249702,-480.0,0.0002,2]
[386641936,1758448249712,-480.0,0.0002,2]
[386641937,1758448249722,-480.0,0.0002,2]
[386641940,1758448249733,-480.0,0.0002,2]
[386641942,1758448249743,-480.0,0.0002,2]
[386641944,1758448249753,-1000.0,0.0002,7]
[386641946,1758448249762,-487.75533888,0.0002,2]
[386641955,1758448249851,-480.0,0.0002,2]
[386641958,1758448249862,-480.0,0.0002,2]
[386641960,1758448249871,-480.0,0.0002,2]
[386641961,1758448249880,-480.0,0.0002,2]
[386641964,1758448249890,-480.0,0.0002,2]
[386641966,1758448249900,-480.0,0.0002,2]
[386641968,1758448249910,-480.0,0.0002,2]
[386641970,1758448249919,-480.0,0.0002,2]
[386641972,1758448249928,-480.0,0.0002,2]
[386641974,1758448249938,-480.0,0.0002,2]
[386641976,1758448249947,-480.0,0.0002,2]
[386641978,1758448249957,-480.0,0.0002,2]
[386641980,1758448249966,-480.0,0.0002,2]
[386641981,1758448249976,-480.0,0.0002,2]
[386641983,1758448249985,-480.0,0.0002,2]
[386641985,1758448249995,-480.0,0.0002,2]
[386641987,1758448250004,-480.0,0.0002,2]
[386641989,1758448250014,-480.0,0.0002,2]
[386641991,1758448250023,-480.0,0.0002,2]
[386641993,1758448250033,-480.0,0.0002,2]
[386641995,1758448250042,-485.70875687,0.0002,2]
[386641997,1758448250052,-480.0,0.0002,2]
[386641999,1758448250061,-480.0,0.0002,2]
[386642001,1758448250071,-480.0,0.0002,2]
[386642003,1758448250080,-480.0,0.0002,2]
[386642006,1758448250090,-492.42763867,0.0002,2]
[386642008,1758448250100,-480.0,0.0002,2]
[386642010,1758448250109,-961.48,0.0002,2]
[386642012,1758448250119,-480.0,0.0002,2]
[386642014,1758448250128,-480.0,0.0002,2]
[386642016,1758448250137,-480.0,0.0002,2]
[386642017,1758448250146,-480.0,0.0002,2]
[386642019,1758448250156,-480.0,0.0002,2]
[386642021,1758448250165,-480.0,0.0002,2]
[386642023,1758448250175,-480.0,0.0002,2]
[386642025,1758448250184,-480.0,0.0002,2]
[386642027,1758448250194,-486.9727127,0.0002,2]
[386642029,1758448250204,-398.19971122,0.0002,2]
[386642031,1758448250214,-480.0,0.0002,2]
[386642033,1758448250223,-480.0,0.0002,2]
[386642036,1758448250236,-480.0,0.0002,2]
[386642038,1758448250246,-480.0,0.0002,2]
[386642040,1758448250256,-480.0,0.0002,2]
[386642042,1758448250265,-635.75,0.0002,2]
[386642044,1758448250274,-325.75698031,0.0002,2]
[386642046,1758448250284,-480.0,0.0002,2]
[386642048,1758448250294,-480.0,0.0002,2]
[386642050,1758448250304,-480.0,0.0002,2]
[386642052,1758448250313,-480.0,0.0002,2]
[386642054,1758448250322,-160.0,0.0002,2]
[386642056,1758448250331,-888.43,0.0002,2]
[386642058,1758448250341,-480.0,0.0002,2]
[386642060,1758448250350,-627.24,0.0002,2]
[386642062,1758448250360,-1387.63,0.0002,2]
[386642064,1758448250369,-480.0,0.0002,2]
[386642066,1758448250379,-494.08952021,0.0002,2]
[386642068,1758448250389,-480.0,0.0002,2]
[386642070,1758448250399,-480.0,0.0002,2]
[386642072,1758448250409,-480.0,0.0002,2]
[386642074,1758448250419,-480.0,0.0002,2]
[386642076,1758448250429,-484.95749715,0.0002,2]
[386642078,1758448250440,-488.84317198,0.0002,2]
[386642080,1758448250450,-480.0,0.0002,2]
[386642082,1758448250459,-754.05,0.0002,2]
[386642084,1758448250470,-480.0,0.0002,2]
[386642086,1758448250479,-480.0,0.0002,2]
[386642088,1758448250489,-301.14187502,0.0002,2]
[386642090,1758448250499,-480.0,0.0002,2]
[386642092,1758448250508,-537.85,0.0002,2]
[386642094,1758448250518,-480.0,0.0002,2]
[386642096,1758448250527,-480.0,0.0002,2]
[386642098,1758448250537,-480.0,0.0002,2]
[386642100,1758448250546,-404.80192329,0.0002,2]
[386642101,1758448250556,-480.0,0.0002,2]
[386642102,1758448250565,-480.0,0.0002,2]
[386642103,1758448250575,-480.0,0.0002,2]
[386642104,1758448250585,-480.0,0.0002,2]
[386642105,1758448250595,-480.0,0.0002,2]
[386642106,1758448250604,-480.0,0.0002,2]
[386642107,1758448250614,-480.0,0.0002,2]
[386642108,1758448250623,-312.87729534,0.0002,2]
[386642109,1758448250632,-480.0,0.0002,2]
[386642110,1758448250641,-484.68742518,0.0002,2]
[386642111,1758448250650,-480.0,0.0002,2]
[386642112,1758448250660,-160.0,0.0002,2]
[386642113,1758448250669,-480.0,0.0002,2]
[386642114,1758448250678,-766.74,0.0002,2]
[386642115,1758448250692,-480.0,0.0002,2]
[386642116,1758448250701,-480.0,0.0002,2]
[386642117,1758448250710,-480.0,0.0002,2]
[386642118,1758448250720,-1572.68,0.0002,2]
[386642119,1758448250730,-480.0,0.0002,2]
[386642120,1758448250739,-480.0,0.0002,2]
[386642121,1758448250749,-480.0,0.0002,2]
[386642122,1758448250759,-491.02324628,0.0002,2]
[386642123,1758448250768,-548.17,0.0002,2]
[386642124,1758448250778,-480.0,0.0002,2]
[386642125,1758448250788,-687.33,0.0002,2]
[386642126,1758448250797,-480.0,0.0002,2]
[386642127,1758448250806,-488.21816104,0.0002,2]
[386642128,1758448250815,-4000.0,0.0002,4]
[386642129,1758448250826,-480.0,0.0002,2]
[386642130,1758448250835,-480.0,0.0002,2]
[386642131,1758448250845,-480.0,0.0002,2]
[386642132,1758448250854,-480.0,0.0002,2]
[386642133,1758448250864,-1520.13,0.0002,2]
[386642134,1758448250873,-480.0,0.0002,2]
[386642136,1758448250882,-480.0,0.0002,2]
[386642138,1758448250892,-480.0,0.0002,2]
[386642140,1758448250901,-480.0,0.0002,2]
[386642142,1758448250910,-480.0,0.0002,2]
[386642144,1758448250919,-493.28223373,0.0002,2]
[386642146,1758448250929,-159.171804,0.0002,2]
[386642148,1758448250938,-159.171804,0.0002,2]
[386642150,1758448250949,-842.13,0.0002,2]
[386642152,1758448250958,-159.171804,0.0002,2]
[386642154,1758448250968,-480.0,0.0002,2]
[386642156,1758448250979,-159.171804,0.0002,2]
[386642158,1758448250990,-3352.68,0.0002,2]
[386642160,1758448251000,-168.0,0.00020012,2]
[386642162,1758448251010,-7478.01,0.00020103,2]
[386642164,1758448251019,-480.0,0.00020103,2]
[386642166,1758448251029,-624.8,0.00020103,2]
[386642168,1758448251039,-480.0,0.00020103,2]
[386642170,1758448251049,-759.8,0.00020103,2]
[386642172,1758448251058,-168.0,0.00020118,2]
[386642174,1758448251067,-1572.92945675,0.00020268,2]
[386642176,1758448251076,-329.47169425,0.00020268,2]
[386642178,1758448251085,-1500.0,0.00020268,2]
[386642180,1758448251094,-1500.0,0.00020268,2]
[386642182,1758448251104,-753.89,0.00020272,2]
[386642184,1758448251113,-480.0,0.00020273,2]
[386642186,1758448251122,-480.0,0.00020273,2]
[386642188,1758448251131,-480.0,0.00020273,2]
[386642190,1758448251141,-480.0,0.00020273,2]
[386642192,1758448251150,-480.0,0.00020273,2]
[386642194,1758448251158,-480.0,0.00020273,2]
[386642196,1758448251168,-480.0,0.00020273,2]
[386642198,1758448251177,-480.0,0.00020273,2]
[386642200,1758448251188,-151.05050986,0.00020273,2]
[386642202,1758448251197,-480.0,0.00020273,2]
[386642204,1758448251205,-480.0,0.00020273,2]
[386642205,1758448251215,-480.0,0.00020273,2]
[386642207,1758448251225,-480.0,0.00020273,2]
[386642209,1758448251234,-480.0,0.00020273,2]
[386642211,1758448251243,-480.0,0.00020273,2]
[386642213,1758448251252,-480.0,0.00020273,2]
[386642215,1758448251262,-480.0,0.00020273,2]
[386642217,1758448251271,-480.0,0.00020273,2]
[386642219,1758448251280,-485.85238705,0.00020273,2]
[386642221,1758448251290,-487.23126792,0.00020273,2]
[386642223,1758448251299,-480.0,0.00020273,2]
[386642225,1758448251309,-480.0,0.00020273,2]
[386642227,1758448251318,-480.0,0.00020273,2]
[386642229,1758448251327,-480.0,0.00020273,2]
[386642231,1758448251337,-961.48,0.00020273,2]
[386642233,1758448251346,-487.92349401,0.00020273,2]
[386642235,1758448251356,-480.0,0.00020273,2]
[386642238,1758448251366,-480.0,0.00020273,2]
[386642239,1758448251375,-480.0,0.00020273,2]
[386642241,1758448251385,-527.99361133,0.00020273,2]
[386642243,1758448251394,-480.0,0.00020273,2]
[386642245,1758448251404,-480.0,0.00020273,2]
[386642247,1758448251414,-366.50233707,0.00020273,2]
[386642250,1758448251423,-480.0,0.00020273,2]
[386642251,1758448251433,-483.15185019,0.00020273,2]
[386642253,1758448251442,-635.75,0.00020273,2]
[386642256,1758448251453,-480.0,0.00020273,2]
[386642258,1758448251463,-483.05641242,0.00020273,2]
[386642260,1758448251474,-480.0,0.00020273,2]
[386642262,1758448251484,-888.43,0.00020273,2]
[386642264,1758448251494,-480.0,0.00020273,2]
[386642266,1758448251503,-627.24,0.00020273,2]
[386642268,1758448251512,-1387.63,0.00020273,2]
[386642270,1758448251522,-480.0,0.00020273,2]
[386642272,1758448251531,-487.12475197,0.00020273,2]
[386642274,1758448251541,-480.0,0.00020273,2]
[386642275,1758448251550,-480.0,0.00020273,2]
[386642278,1758448251560,-480.0,0.00020273,2]
[386642280,1758448251569,-480.0,0.00020273,2]
[386642281,1758448251579,-754.05,0.00020273,2]
[386642283,1758448251588,-480.0,0.00020273,2]
[386642293,1758448251671,-537.85,0.00020273,2]
[386642295,1758448251682,-480.0,0.00020273,2]
[386642297,1758448251694,-480.0,0.00020273,2]
[386642299,1758448251703,-480.0,0.00020273,2]
[386642301,1758448251712,-480.0,0.00020273,2]
[386642303,1758448251722,-480.0,0.00020273,2]
[386642305,1758448251731,-480.0,0.00020273,2]
[386642307,1758448251741,-480.0,0.00020273,2]
[386642309,1758448251750,-480.0,0.00020273,2]
[386642311,1758448251759,-480.0,0.00020273,2]
[386642313,1758448251768,-480.0,0.00020273,2]
[386642315,1758448251778,-480.0,0.00020273,2]
[386642317,1758448251790,-480.0,0.00020273,2]
[386642319,1758448251799,-766.74,0.00020273,2]
[386642321,1758448251810,-480.0,0.00020273,2]
[386642323,1758448251819,-480.0,0.00020273,2]
[386642325,1758448251828,-480.0,0.00020273,2]
[386642327,1758448251838,-1572.68,0.00020273,2]
[386642329,1758448251847,-480.0,0.00020273,2]
[386642331,1758448251858,-480.0,0.00020273,2]
[386642333,1758448251867,-548.17,0.00020273,2]
[386642335,1758448251876,-480.0,0.00020273,2]
[386642337,1758448251885,-687.33,0.00020273,2]